lending/lending_fUSD_20250121
["ID","MTS","AMOUNT","RATE_DAILY","PERIOD"]
[349905803,1737490232205,-1314.690331,0.0002,3]
[349905804,1737490232218,-11518.34103702,0.0002,3]
[349905805,1737490232228,-617.86,0.00020012,2]
[349905806,1737490232239,-250.0,0.00020059,2]
[349905807,1737490232250,-807.064,0.0002006,2]
[349905808,1737490232260,-170.93,0.0002006,2]
[349905810,1737490232272,-17203.05,0.00020108,2]
[349905811,1737490232283,-999.99,0.00020145,2]
[349905813,1737490232293,-150.99,0.00020145,2]
[349905815,1737490232304,-2916.43,0.00020145,5]
[349905816,1737490232315,-500.0,0.00020712,2]
[349905818,1737490232327,-5988.0,0.00020717,2]
[349905820,1737490232338,-449.45102376,0.00020764,2]
[349905822,1737490232349,-200.0,0.00020815,2]
[349905823,1737490232360,-451.0,0.00020822,2]
[349905825,1737490232371,-200.0,0.00020826,2]
[349905827,1737490232382,-200.0,0.00020831,2]
[349905829,1737490232392,-449.45102375,0.00020835,2]
[349905830,1737490232403,-430.3178249,0.00020862,2]
[349905832,1737490232413,-500.0,0.00020863,2]
[349905833,1737490232423,-500.0,0.00020863,2]
[349905835,1737490232435,-500.0,0.00020863,2]
[349905837,1737490232446,-500.0,0.00020863,2]
[349905839,1737490232457,-500.0,0.00020863,2]
[349905840,1737490232467,-500.0,0.00020863,2]
[349905842,1737490232478,-500.0,0.00020863,2]
[349905844,1737490232488,-500.0,0.00020863,2]
[349905846,1737490232499,-500.0,0.00020863,2]
[349905848,1737490232509,-204.32059527,0.00020863,2]
[349905850,1737490232519,-500.0,0.00020863,2]
[349905851,1737490232529,-500.0,0.00020863,2]
[349905853,1737490232540,-500.0,0.00020863,2]
[349905855,1737490232552,-500.0,0.00020863,2]
[349905857,1737490232563,-500.0,0.00020863,2]
[349905859,1737490232574,-500.0,0.00020863,2]
[349905861,1737490232585,-500.0,0.00020863,2]
[349905863,1737490232596,-500.0,0.00020863,2]
[349905865,1737490232607,-500.0,0.00020863,2]
[349905866,1737490232617,-511.99,0.00020863,2]
[349905868,1737490232628,-500.0,0.00020863,2]
[349905870,1737490232638,-500.0,0.00020863,2]
[349905871,1737490232649,-370.78768634,0.00020863,2]
[349905872,1737490232660,-500.0,0.00020863,2]
[349905874,1737490232670,-500.0,0.00020863,2]
[349905876,1737490232680,-500.0,0.00020863,2]
[349905878,1737490232691,-500.0,0.00020863,2]
[349905880,1737490232701,-500.0,0.00020863,2]
[349905881,1737490232712,-500.0,0.00020863,2]
[349905883,1737490232722,-500.0,0.00020863,2]
[349905885,1737490232732,-500.0,0.00020863,2]
[349905887,1737490232743,-500.0,0.00020863,2]
[349905889,1737490232753,-500.0,0.00020863,2]
[349905891,1737490232763,-581.79,0.00020863,2]
[349905893,1737490232774,-500.0,0.00020863,2]
[349905894,1737490232785,-500.0,0.00020863,2]
[349905896,1737490232796,-500.0,0.00020863,2]
[349905898,1737490232808,-500.0,0.00020863,2]
[349905900,1737490232819,-500.0,0.00020863,2]
[349905902,1737490232830,-500.0,0.00020863,2]
[349905904,1737490232841,-500.0,0.00020863,2]
[349905905,1737490232851,-500.0,0.00020863,2]
[349905906,1737490232863,-510.71,0.00020863,2]
[349905907,1737490232873,-934.43,0.00020863,2]
[349905908,1737490232884,-821.12,0.00020863,2]
[349905909,1737490232894,-523.58,0.00020863,2]
[349905910,1737490232905,-500.0,0.00020863,2]
[349905911,1737490232916,-500.0,0.00020863,2]
[349905912,1737490232927,-515.92,0.00020863,2]
[349905913,1737490232938,-512.03,0.00020863,2]
[349905914,1737490232949,-1075.22,0.00020863,2]
[349905915,1737490232960,-1193.32,0.00020863,2]
[349905916,1737490232971,-500.0,0.00020863,2]
[349905917,1737490232982,-500.0,0.00020863,2]
[349905918,1737490232993,-976.41,0.00020863,2]
[349905919,1737490233003,-500.0,0.00020863,2]
[349905920,1737490233014,-543.87,0.00020863,2]
[349905921,1737490233024,-500.0,0.00020863,2]
[349905922,1737490233035,-500.0,0.00020863,2]
[349905923,1737490233046,-1145.15,0.00020863,2]
[349905924,1737490233058,-500.0,0.00020863,2]
[349905925,1737490233068,-881.03,0.00020863,2]
[349905926,1737490233079,-88993.27156261,0.00020863,2]
[349905927,1737490233090,-500.0,0.00020864,2]
[349905928,1737490233100,-500.0,0.00020864,2]
[349905929,1737490233110,-500.0,0.00020864,2]
[349905930,1737490233121,-500.0,0.00020864,2]
[349905931,1737490233131,-500.0,0.00020864,2]
[349905932,1737490233141,-530.34375308,0.00020864,2]
[349905933,1737490233151,-500.0,0.00020864,2]
[349905934,1737490233162,-500.0,0.00020864,2]
[349905935,1737490233172,-500.0,0.00020864,2]
[349905936,1737490233182,-500.0,0.00020864,2]
[349905937,1737490233192,-500.0,0.00020864,2]
[349905938,1737490233203,-500.0,0.00020864,2]
[349905939,1737490233213,-500.0,0.00020864,2]
[349905940,1737490233224,-500.0,0.00020864,2]
[349905941,1737490233234,-500.0,0.00020864,2]
[349905942,1737490233245,-500.0,0.00020864,2]
[349905943,1737490233255,-500.0,0.00020864,2]
[349905944,1737490233266,-500.0,0.00020864,2]
[349905945,1737490233281,-500.0,0.00020864,2]
[349905946,1737490233292,-500.0,0.00020864,2]
[349905947,1737490233302,-500.0,0.00020864,2]
[349905948,1737490233314,-500.0,0.00020864,2]
[349905949,1737490233325,-500.0,0.00020864,2]
[349905950,1737490233336,-500.0,0.00020864,2]
[349905951,1737490233347,-500.0,0.00020864,2]
[349905952,1737490233358,-500.0,0.00020864,2]
[349905953,1737490233368,-500.0,0.00020864,2]
[349905954,1737490233378,-500.0,0.00020864,2]
[349905955,1737490233387,-500.0,0.00020864,2]
[349905956,1737490233397,-500.0,0.00020864,2]
[349905957,1737490233695,-501.48066161,0.00020864,2]
[349905958,1737490233716,-500.0,0.00020864,2]
[349905959,1737490233727,-500.0,0.00020864,2]
[349905960,1737490233736,-500.0,0.00020864,2]
[349905961,1737490233746,-500.0,0.00020864,2]
[349905962,1737490233756,-200.0,0.00020872,2]
[349905963,1737490233766,-169.78715027,0.000209,2]
[349905964,1737490233776,-222.8577857,0.000209,2]
[349905965,1737490233786,-200.0,0.00020905,2]
[349905966,1737490233795,-449.45102375,0.00020905,2]
[349905967,1737490233806,-200.0,0.0002094,2]
[349905968,1737490233816,-200.0,0.00020944,2]
[349905969,1737490233825,-505.27246082,0.00020964,2]
[349905970,1737490233835,-581.20618135,0.00020964,2]
[349905971,1737490233844,-634.54164428,0.00020964,2]
[349905972,1737490233854,-500.0,0.00020964,2]
[349905973,1737490233863,-500.0,0.00020964,2]
[349905974,1737490233873,-500.0,0.00020964,2]
[349905975,1737490233883,-500.0,0.00020964,2]
[349905976,1737490233892,-176.47547056,0.00020964,2]
[349905977,1737490233902,-449.45102375,0.00020976,2]
[349905978,1737490233911,-3674.91024173,0.00021,2]
[349905979,1737490233921,-1800.0,0.00021,22]
[349905980,1737490233930,-150.0,0.00021023,2]
[349905981,1737490233940,-3902.0,0.00021023,2]
[349905982,1737490233949,-1106.0,0.00021023,2]
[349905983,1737490233959,-204.91,0.00021028,2]
[349905984,1737490233968,-150.0,0.00021034,2]
[349905985,1737490233978,-150.0,0.00021035,2]
[349905986,1737490233988,-150.0,0.00021036,2]
[349905987,1737490233998,-5000.0,0.00021037,2]
[349905988,1737490234007,-150.0,0.00021037,2]
[349905989,1737490234017,-150.0,0.00021037,2]
[349905990,1737490234026,-150.0,0.00021037,2]
[349905991,1737490234035,-500.0,0.00021037,2]
[349905992,1737490234044,-624.7,0.00021037,2]
[349905993,1737490234055,-150.0,0.00021038,2]
[349905994,1737490234064,-2239.99825452,0.00021038,2]
[349905995,1737490234073,-305.56260416,0.00021038,2]
[349905996,1737490234082,-34463.05885449,0.00021038,2]
[349905997,1737490234099,-437.7779378,0.00021038,2]
[349905998,1737490234110,-1231.799652,0.00021038,2]
[349906004,1737490237531,-541.52275571,0.00021038,2]
[349906005,1737490237541,-97.88083376,0.00021041,2]
[349906006,1737490237553,-52.11916624,0.00021041,2]
[349906007,1737490237564,-150.0,0.00021043,2]
[349906008,1737490237573,-449.45102375,0.00021047,2]
[349906009,1737490237584,-150.0,0.00021047,2]
[349906010,1737490237594,-150.0,0.00021047,2]
[349906011,1737490237603,-150.0,0.00021048,2]
[349906012,1737490237613,-150.0,0.00021049,2]
[349906013,1737490237623,-150.0,0.00021052,2]
[349906014,1737490237633,-150.0,0.00021055,2]
[349906015,1737490237642,-150.0,0.00021057,2]
[349906016,1737490237652,-94.840107,0.00021058,2]
[349906017,1737490237679,-150.0,0.00021038,2]
[349906018,1737490237689,-150.0,0.00021039,2]
[349906019,1737490237698,-55.159893,0.00021058,2]
[349906020,1737490237707,-150.0,0.00021061,2]
[349906021,1737490237716,-150.0,0.00021063,2]
[349906022,1737490237725,-150.0,0.00021064,2]
[349906023,1737490237735,-500.0,0.0002107,2]
[349906024,1737490237744,-150.0,0.00021071,2]
[349906025,1737490237754,-150.0,0.00021072,2]
[349906026,1737490237763,-150.0,0.00021073,2]
[349906027,1737490237773,-150.0,0.00021073,2]
[349906028,1737490237783,-200.0,0.00021074,2]
[349906029,1737490237793,-150.0,0.00021077,2]
[349906030,1737490237802,-2239.99825444,0.00021078,2]
[349906031,1737490237813,-150.0,0.00021079,2]
[349906032,1737490237823,-150.0,0.0002108,2]
[349906033,1737490237833,-150.0,0.0002109,2]
[349906034,1737490237843,-150.0,0.00021093,2]
[349906035,1737490237854,-150.0,0.00021095,2]
[349906036,1737490237864,-150.0,0.00021096,2]
[349906037,1737490237874,-150.0,0.00021103,2]
[349906038,1737490237883,-150.0,0.00021103,2]
[349906039,1737490237890,-150.0,0.00021105,2]
[349906040,1737490237899,-150.0,0.00021107,2]
[349906041,1737490237908,-150.0,0.00021111,2]
[349906042,1737490237918,-449.45102375,0.00021117,2]
[349906043,1737490237928,-2239.99825444,0.00021118,2]
[349906044,1737490237937,-150.0,0.0002112,2]
[349906046,1737490237954,-150.0,0.00021124,2]
[349906048,1737490237967,-150.0,0.00021126,2]
[349906050,1737490237977,-150.0,0.00021127,2]
[349906052,1737490237988,-150.0,0.00021128,2]
[349906054,1737490237999,-1149.57,0.00021131,2]
[349906056,1737490238008,-946.8,0.00021131,2]
[349906058,1737490238019,-500.0,0.00021131,2]
[349906060,1737490238029,-368.745441,0.00021131,2]
[349906062,1737490238039,-500.0,0.00021131,2]
[349906064,1737490238048,-1138.35,0.00021131,2]
[349906066,1737490238058,-500.0,0.00021131,2]
[349906067,1737490238069,-610.69,0.00021131,2]
[349906069,1737490238078,-512.42,0.00021131,2]
[349906071,1737490238089,-284.7673,0.00021131,2]
[349906073,1737490238099,-997.93,0.00021131,2]
[349906075,1737490238109,-500.0,0.00021131,2]
[349906076,1737490238119,-500.0,0.00021131,2]
[349906078,1737490238130,-806.46,0.00021131,2]
[349906080,1737490238139,-507.79,0.00021131,2]
[349906082,1737490238149,-500.0,0.00021131,2]
[349906084,1737490238158,-597.49,0.00021131,2]
[349906086,1737490238169,-592.81,0.00021131,2]
[349906088,1737490238178,-1137.28,0.00021131,2]
[349906090,1737490238187,-780.24,0.00021131,2]
[349906092,1737490238197,-908.47,0.00021131,2]
[349906094,1737490238207,-1669.39,0.00021131,2]
[349906096,1737490238216,-1151.54,0.00021131,2]
[349906097,1737490238227,-1351.82,0.00021131,2]
[349906098,1737490238237,-541.47,0.00021131,2]
[349906099,1737490238247,-664.52,0.00021131,2]
[349906100,1737490238257,-500.0,0.00021131,2]
[349906101,1737490238267,-652.99,0.00021131,2]
[349906102,1737490238283,-2152.58,0.00021131,2]
[349906103,1737490238295,-638.37,0.00021131,2]
[349906104,1737490238305,-500.0,0.00021131,2]
[349906105,1737490238315,-783.61,0.00021131,2]
[349906106,1737490238327,-500.0,0.00021131,2]
[349906107,1737490238338,-674.54,0.00021131,2]
[349906108,1737490238349,-598.93,0.00021131,2]
[349906109,1737490238360,-500.0,0.00021132,2]
[349906110,1737490238369,-500.0,0.00021132,2]
[349906111,1737490238379,-500.0,0.00021132,2]
[349906112,1737490238389,-503.52,0.00021132,2]
[349906113,1737490238399,-500.0,0.00021132,2]
[349906114,1737490238409,-500.0,0.00021132,2]
[349906115,1737490238419,-500.0,0.00021132,2]
[349906116,1737490238429,-500.0,0.00021132,2]
[349906117,1737490238439,-500.0,0.00021132,2]
[349906118,1737490238449,-287.49839468,0.00021132,2]
[349906119,1737490238460,-500.0,0.00021132,2]
[349906120,1737490238471,-500.0,0.00021132,2]
[349906121,1737490238481,-500.0,0.00021132,2]
[349906122,1737490238491,-280.19492437,0.00021132,2]
[349906123,1737490238501,-500.0,0.00021132,2]
[349906124,1737490238511,-500.0,0.00021132,2]
[349906125,1737490238520,-500.0,0.00021132,2]
[349906126,1737490238530,-500.0,0.00021132,2]
[349906127,1737490238539,-150.0,0.00021132,2]
[349906128,1737490238554,-500.0,0.00021132,2]
[349906129,1737490238565,-500.0,0.00021132,2]
[349906130,1737490238574,-500.0,0.00021132,2]
[349906131,1737490238584,-500.0,0.00021132,2]
[349906132,1737490238594,-500.0,0.00021132,2]
[349906133,1737490238603,-500.0,0.00021132,2]
[349906134,1737490238614,-500.0,0.00021132,2]
[349906135,1737490238624,-500.0,0.00021132,2]
[349906136,1737490238634,-500.0,0.00021132,2]
[349906137,1737490238644,-500.0,0.00021132,2]
[349906138,1737490238654,-500.0,0.00021132,2]
[349906139,1737490238664,-500.0,0.00021132,2]
[349906140,1737490238673,-500.0,0.00021132,2]
[349906141,1737490238683,-500.0,0.00021132,2]
[349906142,1737490238693,-500.0,0.00021132,2]
[349906143,1737490238703,-500.0,0.00021132,2]
[349906144,1737490238713,-500.0,0.00021132,2]
[349906145,1737490238723,-500.0,0.00021132,2]
[349906146,1737490238734,-500.0,0.00021132,2]
[349906147,1737490238745,-500.0,0.00021132,2]
[349906148,1737490238755,-500.0,0.00021132,2]
[349906149,1737490238765,-500.0,0.00021132,2]
[349906150,1737490238774,-500.0,0.00021132,2]
[349906151,1737490238784,-500.0,0.00021132,2]
[349906152,1737490238795,-500.0,0.00021132,2]
[349906153,1737490238804,-500.0,0.00021132,2]
[349906154,1737490238816,-500.0,0.00021132,2]
[349906155,1737490238826,-500.0,0.00021132,2]
[349906156,1737490238837,-500.0,0.00021132,2]
[349906157,1737490238847,-500.0,0.00021132,2]
[349906158,1737490238858,-500.0,0.00021132,2]
[349906159,1737490238868,-500.0,0.00021132,2]
[349906160,1737490238878,-500.0,0.00021132,2]
[349906161,1737490238888,-500.0,0.00021132,2]
[349906162,1737490238899,-500.0,0.00021132,2]
[349906163,1737490238909,-500.0,0.00021132,2]
[349906164,1737490238919,-500.0,0.00021132,2]
[349906165,1737490238928,-500.0,0.00021132,2]
[349906166,1737490238939,-500.0,0.00021132,2]
[349906167,1737490238949,-500.0,0.00021132,2]
[349906168,1737490238959,-500.0,0.00021132,2]
[349906169,1737490238968,-500.0,0.00021132,2]
[349906170,1737490238977,-500.0,0.00021132,2]
[349906171,1737490238987,-500.0,0.00021132,2]
[349906172,1737490238997,-500.0,0.00021132,2]
[349906173,1737490239007,-500.0,0.00021132,2]
[349906174,1737490239016,-500.0,0.00021132,2]
[349906175,1737490239026,-500.0,0.00021132,2]
[349906176,1737490239036,-500.0,0.00021132,2]
[349906177,1737490239046,-500.0,0.00021132,2]
[349906178,1737490239056,-500.0,0.00021132,2]
[349906179,1737490239066,-500.0,0.00021132,2]
[349906180,1737490239076,-612.85,0.00021132,2]
[349906181,1737490239085,-1403.78,0.00021132,2]
[349906182,1737490239094,-500.0,0.00021132,2]
[349906183,1737490239104,-500.0,0.00021132,2]
[349906184,1737490239114,-661.42,0.00021132,2]
[349906185,1737490239123,-500.0,0.00021132,2]
[349906186,1737490239133,-500.0,0.00021132,2]
[349906187,1737490239143,-500.0,0.00021132,2]
[349906188,1737490239153,-666.13,0.00021132,2]
[349906189,1737490239163,-500.0,0.00021132,2]
[349906190,1737490239172,-500.0,0.00021132,2]
[349906191,1737490239183,-500.0,0.00021132,2]
[349906192,1737490239192,-500.0,0.00021132,2]
[349906193,1737490239203,-223.39768441,0.00021132,2]
[349906194,1737490239214,-500.0,0.00021132,2]
[349906195,1737490239223,-500.0,0.00021132,2]
[349906196,1737490239234,-500.0,0.00021132,2]
[349906197,1737490239244,-1290.81,0.00021132,2]
[349906198,1737490239255,-193.60539019,0.00021132,2]
[349906199,1737490239267,-500.0,0.00021132,2]
[349906200,1737490239281,-500.0,0.00021132,2]
[349906201,1737490239290,-500.0,0.00021132,2]
[349906202,1737490239300,-500.0,0.00021132,2]
[349906203,1737490239311,-500.0,0.00021132,2]
[349906204,1737490239321,-500.0,0.00021132,2]
[349906205,1737490239332,-500.0,0.00021132,2]
[349906206,1737490239342,-904.17,0.00021132,2]
[349906207,1737490239353,-500.0,0.00021132,2]
[349906208,1737490239363,-500.0,0.00021132,2]
[349906210,1737490239372,-500.0,0.00021132,2]
[349906212,1737490239382,-500.0,0.00021132,2]
[349906213,1737490239391,-500.0,0.00021132,2]
[349906215,1737490239401,-500.0,0.00021132,2]
[349906216,1737490239411,-500.0,0.00021132,2]
[349906217,1737490239420,-500.0,0.00021132,2]
[349906218,1737490239430,-500.0,0.00021132,2]
[349906219,1737490239440,-500.0,0.00021132,2]
[349906220,1737490239449,-500.0,0.00021132,2]
[349906221,1737490239459,-500.0,0.00021132,2]
[349906222,1737490239473,-500.0,0.00021132,2]
[349906223,1737490239483,-500.0,0.00021132,2]
[349906224,1737490239494,-500.0,0.00021132,2]
[349906225,1737490239504,-500.0,0.00021132,2]
[349906226,1737490239514,-500.0,0.00021132,2]
[349906227,1737490239524,-500.0,0.00021132,2]
[349906228,1737490239534,-500.0,0.00021132,2]
[349906229,1737490239545,-500.0,0.00021132,2]
[349906230,1737490239555,-500.0,0.00021132,2]
[349906231,1737490239565,-762.59,0.00021132,2]
[349906232,1737490239575,-500.0,0.00021132,2]
[349906233,1737490239585,-557.65,0.00021132,2]
[349906234,1737490239595,-500.0,0.00021132,2]
[349906235,1737490239605,-500.0,0.00021132,2]
[349906236,1737490239615,-413.57478161,0.00021132,2]
[349906237,1737490239626,-500.0,0.00021132,2]
[349906238,1737490239636,-1846.37,0.00021132,2]
[349906239,1737490239645,-521.89,0.00021132,2]
[349906240,1737490239655,-500.0,0.00021132,2]
[349906241,1737490239665,-500.0,0.00021132,2]
[349906242,1737490239675,-500.0,0.00021132,2]
[349906243,1737490239685,-500.0,0.00021132,2]
[349906244,1737490239695,-500.0,0.00021132,2]
[349906245,1737490239705,-500.0,0.00021132,2]
[349906246,1737490239715,-500.0,0.00021132,2]
[349906247,1737490239725,-433.05236912,0.00021132,2]
[349906248,1737490239741,-66.94763088,0.00021132,2]
[349906249,1737490239750,-500.0,0.00021132,2]
[349906250,1737490239760,-500.0,0.00021132,2]
[349906251,1737490239770,-500.0,0.00021132,2]
[349906252,1737490239779,-500.0,0.00021132,2]
[349906253,1737490239789,-150.0,0.00021133,2]
[349906254,1737490239799,-27.10558985,0.00021134,2]
[349906255,1737490239820,-278.45701431,0.00021134,2]
[349906256,1737490239830,-150.0,0.00021136,2]
[349906257,1737490239840,-159.60920541,0.00021137,2]
[349906258,1737490239850,-500.0,0.00021137,2]
[349906259,1737490239860,-500.0,0.00021137,2]
[349906260,1737490239869,-500.0,0.00021137,2]
[349906261,1737490239879,-557.6389377,0.00021137,2]
[349906262,1737490239889,-500.0,0.00021137,2]
[349906263,1737490239899,-500.0,0.00021137,2]
[349906264,1737490239909,-631.41012913,0.00021137,2]
[349906265,1737490239918,-500.0,0.00021137,2]
[349906266,1737490239928,-500.0,0.00021137,2]
[349906267,1737490239938,-500.0,0.00021137,2]
[349906277,1737490240135,-500.0,0.00021137,2]
[349906279,1737490240150,-342.8307815,0.00021137,2]
[349906281,1737490240159,-500.0,0.00021137,2]
[349906283,1737490240169,-500.0,0.00021137,2]
[349906285,1737490240179,-500.0,0.00021137,2]
[349906287,1737490240188,-502.97743495,0.00021137,2]
[349906289,1737490240198,-500.0,0.00021137,2]
[349906291,1737490240206,-500.0,0.00021137,2]
[349906293,1737490240216,-500.0,0.00021137,2]
[349906295,1737490240227,-500.0,0.00021137,2]
[349906297,1737490240237,-500.0,0.00021137,2]
[349906299,1737490240247,-500.0,0.00021137,2]
[349906301,1737490240257,-500.0,0.00021137,2]
[349906303,1737490240267,-500.0,0.00021137,2]
[349906305,1737490240280,-500.0,0.00021137,2]
[349906307,1737490240290,-500.0,0.00021137,2]
[349906309,1737490240300,-439.40476861,0.00021137,2]
[349906321,1737490240663,-150.0,0.00021029,2]
[349906322,1737490240674,-150.0,0.00021045,2]
[349906323,1737490240687,-37.91385831,0.00021064,2]
[349906324,1737490240703,-112.08614169,0.00021064,2]
[349906325,1737490240712,-150.0,0.00021082,2]
[349906326,1737490240722,-150.0,0.0002111,2]
[349906327,1737490240732,-32.99083631,0.00021131,2]
[349906328,1737490240743,-467.00916369,0.00021131,2]
[349906329,1737490240753,-68.88484961,0.00021134,2]
[349906330,1737490240871,-81.11515039,0.00021134,2]
[349906331,1737490240882,-150.0,0.00021135,2]
[349906332,1737490240891,-24.78919452,0.00021137,2]
[349906333,1737490240903,-35.80603687,0.00021137,2]
[349906334,1737490240912,-500.0,0.00021137,2]
[349906335,1737490240923,-500.0,0.00021137,2]
[349906336,1737490240933,-500.0,0.00021137,2]
[349906337,1737490240943,-500.0,0.00021137,2]
[349906338,1737490240953,-500.0,0.00021137,2]
[349906339,1737490240963,-500.0,0.00021137,2]
[349906340,1737490240973,-500.0,0.00021137,2]
[349906341,1737490240983,-500.0,0.00021137,2]
[349906342,1737490240993,-581.79,0.00021137,2]
[349906343,1737490241003,-500.0,0.00021137,2]
[349906344,1737490241013,-500.0,0.00021137,2]
[349906345,1737490241023,-640.40696026,0.00021137,2]
[349906346,1737490241033,-500.0,0.00021137,2]
[349906347,1737490241043,-500.0,0.00021137,2]
[349906348,1737490241054,-234.89698647,0.00021137,2]
[349906354,1737490242727,-4866.70833437,0.0002,2]
[349906355,1737490242773,-701.73709409,0.0002,2]
[349906356,1737490242785,-5988.76457154,0.0002,2]
[349906357,1737490242796,-500.0,0.00021132,2]
[349906358,1737490242806,-265.10301353,0.00021137,2]
[349906359,1737490242817,-500.0,0.00021137,2]
[349906360,1737490242827,-500.0,0.00021137,2]
[349906361,1737490242836,-500.0,0.00021137,2]
[349906362,1737490242846,-630.3,0.00021137,2]
[349906363,1737490242857,-500.0,0.00021137,2]
[349906364,1737490242866,-500.0,0.00021137,2]
[349906365,1737490242876,-500.0,0.00021137,2]
[349906366,1737490242885,-500.0,0.00021137,2]
[349906367,1737490242894,-500.0,0.00021137,2]
[349906368,1737490242904,-500.0,0.00021137,2]
[349906369,1737490242914,-500.0,0.00021137,2]
[349906370,1737490242923,-500.0,0.00021137,2]
[349906371,1737490242933,-500.0,0.00021137,2]
[349906372,1737490242943,-500.0,0.00021137,2]
[349906373,1737490242952,-510.71,0.00021137,2]
[349906374,1737490242962,-934.43,0.00021137,2]
[349906375,1737490242971,-500.0,0.00021137,2]
[349906376,1737490242980,-821.12,0.00021137,2]
[349906377,1737490242990,-523.58,0.00021137,2]
[349906378,1737490242999,-500.0,0.00021137,2]
[349906379,1737490243009,-500.0,0.00021137,2]
[349906380,1737490243018,-500.0,0.00021137,2]
[349906381,1737490243028,-401.3689945,0.00021137,2]
[349906382,1737490243038,-515.92,0.00021137,2]
[349906383,1737490243048,-512.03,0.00021137,2]
[349906384,1737490243058,-1075.22,0.00021137,2]
[349906385,1737490243068,-1193.32,0.00021137,2]
[349906386,1737490243078,-500.0,0.00021137,2]
[349906387,1737490243087,-500.0,0.00021137,2]
[349906388,1737490243097,-500.0,0.00021137,2]
[349906389,1737490243106,-976.41,0.00021137,2]
[349906390,1737490243116,-500.0,0.00021137,2]
[349906391,1737490243125,-22.00342043,0.00021137,2]
[349906393,1737490245589,-907.35,0.00020863,2]
[349906394,1737490245599,-477.99657957,0.00021137,2]
[349906395,1737490245608,-239.86975913,0.00021137,2]
[349906396,1737490245618,-500.0,0.00021137,2]
[349906397,1737490245627,-1145.15,0.00021137,2]
[349906398,1737490245636,-500.0,0.00021137,2]
[349906399,1737490245646,-500.0,0.00021137,2]
[349906400,1737490245656,-881.03,0.00021137,2]
[349906401,1737490245665,-907.35,0.00021137,2]
[349906402,1737490245675,-500.0,0.00021138,2]
[349906403,1737490245685,-500.0,0.00021138,2]
[349906404,1737490245694,-491.33453317,0.00021138,2]
[349906405,1737490245703,-162.73258998,0.00021138,2]
[349906406,1737490245718,-337.26741002,0.00021138,2]
[349906407,1737490245728,-500.0,0.00021138,2]
[349906408,1737490245737,-500.0,0.00021138,2]
[349906409,1737490245747,-609.89659673,0.00021138,2]
[349906410,1737490245756,-500.0,0.00021138,2]
[349906411,1737490245766,-500.0,0.00021138,2]
[349906412,1737490245776,-500.0,0.00021138,2]
[349906413,1737490245785,-459.5,0.00021138,2]
[349906414,1737490245796,-500.0,0.00021138,2]
[349906415,1737490245805,-500.0,0.00021138,2]
[349906416,1737490245816,-1206.83599325,0.00021138,2]
[349906417,1737490245828,-1793.16400675,0.00021138,2]
[349906418,1737490245838,-150.0,0.00021142,2]
[349906419,1737490245849,-150.0,0.00021142,2]